fUST/lending_fUST_20260226
["ID","MTS","AMOUNT","RATE_DAILY","PERIOD"]
[406688057,1772081238578,-592.53162647,0.00013699,2]
[406688058,1772081238600,-301.01845214,0.00013699,2]
[406688059,1772081238620,-500.0,0.00013699,2]
[406688060,1772081238641,-500.0,0.00013699,2]
[406688061,1772081238662,-194.54041969,0.00013699,2]
[406688062,1772081238683,-500.0,0.00013699,2]
[406688063,1772081238706,-500.0,0.00013699,2]
[406688064,1772081238728,-500.0,0.00013699,2]
[406688065,1772081238751,-161.33088549,0.00013699,2]
[406688066,1772081238772,-500.0,0.00013699,2]
[406688067,1772081238793,-500.0,0.00013699,2]
[406688068,1772081238813,-500.0,0.00013699,2]
[406688069,1772081238836,-500.0,0.00013699,2]
[406688070,1772081238857,-500.0,0.00013699,2]
[406688071,1772081238879,-455.24873046,0.00013699,2]
[406688072,1772081238900,-500.0,0.00013699,2]
[406688073,1772081238921,-376.16048105,0.00013699,2]
[406688074,1772081238942,-500.0,0.00013699,2]
[406688075,1772081238963,-500.20533029,0.00013699,2]
[406688076,1772081238984,-500.0,0.00013699,2]
[406688077,1772081239004,-500.0,0.00013699,2]
[406688078,1772081239027,-500.0,0.00013699,2]
[406688079,1772081239049,-500.0,0.00013699,2]
[406688080,1772081239070,-500.0,0.00013699,2]
[406688081,1772081239092,-158.21933482,0.00013699,2]
[406688082,1772081239119,-500.43635381,0.00013699,2]
[406688083,1772081239141,-500.0,0.00013699,2]
[406688084,1772081239162,-500.0,0.00013699,2]
[406688085,1772081239186,-506.8243523,0.00013699,2]
[406688086,1772081239208,-500.0,0.00013699,2]
[406688087,1772081239229,-500.0,0.00013699,2]
[406688088,1772081239251,-500.46554818,0.00013699,2]
[406688089,1772081239273,-500.0,0.00013699,2]
[406688090,1772081239294,-500.56578962,0.00013699,2]
[406688091,1772081239315,-150.0,0.00013699,2]
[406688092,1772081239335,-500.0,0.00013699,2]
[406688093,1772081239357,-500.0,0.00013699,2]
[406688094,1772081239378,-500.0,0.00013699,2]
[406688095,1772081239398,-500.0,0.00013699,2]
[406688096,1772081239419,-500.0,0.00013699,2]
[406688097,1772081239438,-500.0,0.00013699,2]
[406688098,1772081239458,-500.3695541,0.00013699,2]
[406688099,1772081239478,-500.0,0.00013699,2]
[406688100,1772081239497,-500.71834181,0.00013699,2]
[406688101,1772081239518,-500.0,0.00013699,2]
[406688102,1772081239538,-500.0,0.00013699,2]
[406688103,1772081239559,-500.0,0.00013699,2]
[406688104,1772081239580,-500.0,0.00013699,2]
[406688105,1772081239602,-547.06491265,0.00013699,2]
[406688106,1772081239621,-528.57330899,0.00013699,2]
[406688107,1772081239642,-478.19,0.000137,2]
[406688108,1772081239662,-478.19,0.000137,2]
[406688109,1772081239684,-478.19,0.000137,2]
[406688110,1772081239704,-478.19,0.000137,2]
[406688111,1772081239724,-478.19,0.000137,2]
[406688112,1772081239744,-478.19,0.000137,2]
[406688113,1772081239763,-478.19,0.000137,2]
[406688114,1772081239784,-478.19,0.000137,2]
[406688115,1772081239805,-478.19,0.000137,2]
[406688116,1772081239829,-478.19,0.000137,2]
[406688117,1772081239851,-478.19,0.000137,2]
[406688118,1772081239871,-478.19,0.000137,2]
[406688119,1772081239894,-478.19,0.000137,2]
[406688120,1772081239916,-478.18,0.000137,2]
[406688121,1772081239936,-150.0,0.000137,2]
[406688122,1772081239956,-1008.03343224,0.00013821,2]
[406688123,1772081239975,-913.80928703,0.00013821,2]
[406688124,1772081239995,-1000.0,0.00013821,2]
[406688125,1772081240016,-672.18696096,0.00013821,2]
[406688126,1772081240036,-1000.0,0.00013821,2]
[406688127,1772081240061,-1000.0,0.00013821,2]
[406688128,1772081240081,-407.85449753,0.00013821,2]
[406688129,1772081240106,-1000.0,0.00013821,2]
[406688130,1772081240127,-1000.0,0.00013821,2]
[406688131,1772081240149,-663.02734078,0.00013821,2]
[406688132,1772081240174,-720.0,0.00013906,2]
[406688133,1772081240194,-443.06,0.00014147,2]
[406688134,1772081240216,-338.10372447,0.00014152,2]
[406688135,1772081240239,-1356.3171253,0.00014175,2]
[406688136,1772081240264,-150.0,0.000142,2]
[406688137,1772081240285,-300.0,0.00014221,2]
[406688138,1772081240306,-354.8324539,0.00014221,2]
[406688139,1772081240327,-1000.0,0.00014247,2]
[406688140,1772081240350,-500.66341769,0.00014247,2]
[406688141,1772081240371,-170.60208772,0.00014247,2]
[406688142,1772081240394,-456.06073594,0.00014247,2]
[406688143,1772081240415,-504.0844134,0.00014247,2]
[406688144,1772081240437,-1007.29708436,0.00014247,2]
[406688145,1772081240457,-1000.0,0.00014247,2]
[406688146,1772081240478,-500.0,0.00014247,2]
[406688147,1772081240499,-539.825409,0.00014247,2]
[406688148,1772081240521,-501.25178226,0.00014247,2]
[406688149,1772081240542,-500.80350113,0.00014247,2]
[406688150,1772081240562,-358.26389884,0.00014247,2]
[406688151,1772081240582,-1121.94832915,0.00014247,2]
[406688152,1772081240603,-1000.98665082,0.00014247,2]
[406688153,1772081240623,-860.91419843,0.00014247,2]
[406688154,1772081240643,-1000.0,0.00014247,2]
[406688155,1772081240663,-1000.0,0.00014247,2]
[406688156,1772081240683,-199.61320858,0.00014247,2]
[406688157,1772081240704,-753.62958709,0.00014247,2]
[406688158,1772081240728,-805.33447734,0.00014247,2]
[406688159,1772081240906,-500.0,0.00014247,2]
[406688160,1772081240927,-1003.28675363,0.00014247,2]
[406688161,1772081240946,-1000.0,0.00014247,2]
[406688162,1772081240966,-530.89313027,0.00014247,2]
[406688163,1772081240986,-500.0,0.00014247,2]
[406688164,1772081241007,-533.66222105,0.00014247,2]
[406688165,1772081241027,-500.81329234,0.00014247,2]
[406688166,1772081241048,-1000.0,0.00014247,2]
[406688167,1772081241068,-397.1446955,0.00014247,2]
[406688168,1772081241094,-157.30345424,0.00014247,2]
[406688169,1772081241120,-150.17622229,0.00014247,2]
[406688170,1772081241141,-294.35583662,0.00014247,2]
[406688171,1772081241162,-501.8352595,0.00014247,2]
[406688172,1772081241185,-500.0,0.00014247,2]
[406688173,1772081241205,-1136.43070677,0.00014247,2]
[406688174,1772081241226,-1000.0,0.00014247,2]
[406688175,1772081241247,-1000.0,0.00014247,2]
[406688176,1772081241268,-1000.0,0.00014247,2]
[406688177,1772081241290,-1000.0,0.00014247,2]
[406688178,1772081241314,-1141.84640255,0.00014368,2]
[406688179,1772081241335,-1500.0,0.00014368,2]
[406688180,1772081241358,-1501.71571213,0.00014368,2]
[406688181,1772081241379,-461.02859815,0.00014368,2]
[406688182,1772081241400,-2642.08085611,0.00014762,2]
[406688183,1772081241421,-261.83021284,0.00014762,2]
[406688184,1772081241446,-503.97203981,0.00014795,2]
[406688185,1772081241467,-1011.63240049,0.00014795,2]
[406688186,1772081241490,-502.97872303,0.00014795,2]
[406688187,1772081241510,-1500.0,0.00014795,2]
[406688188,1772081241531,-500.0,0.00014795,2]
[406688189,1772081241551,-1500.0,0.00014795,2]
[406688190,1772081241571,-150.0,0.000148,2]
[406688191,1772081241593,-502.94427843,0.00014838,2]
[406688192,1772081241615,-2000.0,0.00014916,2]
[406688193,1772081241639,-587.0,0.00014924,2]
[406688194,1772081241660,-150.0,0.00014987,2]
[406688195,1772081241685,-2351.0,0.00014997,2]
[406688196,1772081241705,-150.0,0.00015042,2]
[406688197,1772081241725,-166.492582,0.00015068,2]
[406688198,1772081241745,-250.62974222,0.00015097,2]
[406688199,1772081241767,-864.0,0.00015297,2]
[406688200,1772081241788,-239.73,0.000153,2]
[406688201,1772081241809,-909.15167423,0.00015342,2]
[406688202,1772081241830,-2000.0,0.00015342,2]
[406688203,1772081241852,-4114.2760476,0.00015432,2]
[406688204,1772081241874,-886.78904825,0.00015464,2]
[406688205,1772081241895,-2500.0,0.0001589,2]
[406688206,1772081241917,-389.67886888,0.00016152,2]
[406688207,1772081241939,-823.0,0.00016377,2]
[406688208,1772081241959,-155.0,0.00016405,2]
[406688209,1772081241979,-297.10665449,0.00016438,2]
[406688210,1772081242000,-150.0,0.00016438,2]
[406688211,1772081242021,-1024.78823161,0.00016438,2]
[406688212,1772081242042,-967.0,0.00016496,2]
[406688213,1772081242066,-1000.0,0.00016826,2]
[406688214,1772081242089,-351.64251328,0.00016986,2]
[406688215,1772081242114,-5512.38602804,0.00017205,2]
[406688216,1772081242135,-180.07,0.00017565,2]
[406688217,1772081242156,-4114.2760476,0.00017577,2]
[406688218,1772081242180,-5710.51283244,0.00017963,2]
[406688219,1772081242202,-1152.0,0.00017971,2]
[406688220,1772081242224,-500.0,0.00017984,2]
[406688221,1772081242246,-533.88981491,0.00017984,2]
[406688222,1772081242268,-250.0,0.00017984,2]
[406688223,1772081242292,-194.72792766,0.00017984,2]
[406688224,1772081242315,-250.0,0.00017984,2]
[406688225,1772081242338,-250.0,0.00017984,2]
[406688226,1772081242361,-250.0,0.00017984,2]
[406688227,1772081242384,-500.0,0.00017984,2]
[406688228,1772081242407,-201.93286099,0.00017984,2]
[406688229,1772081242428,-250.0,0.00017984,2]
[406688230,1772081242449,-250.0,0.00017984,2]
[406688231,1772081242476,-500.0,0.00017984,2]
[406688232,1772081242498,-209.40437684,0.00017984,2]
[406688233,1772081242518,-250.0,0.00017984,2]
[406688234,1772081242539,-250.0,0.00017984,2]
[406688235,1772081242559,-250.0,0.00017984,2]
[406688236,1772081242584,-217.15233878,0.00017984,2]
[406688237,1772081242607,-500.0,0.00017984,2]
[406688238,1772081242628,-250.0,0.00017984,2]
[406688239,1772081242650,-250.0,0.00017984,2]
[406688240,1772081242672,-250.0,0.00017984,2]
[406688241,1772081242694,-500.0,0.00017984,2]
[406688242,1772081242718,-250.0,0.00017984,2]
[406688243,1772081242741,-225.18697532,0.00017984,2]
[406688244,1772081242763,-250.0,0.00017984,2]
[406688245,1772081242784,-250.0,0.00017984,2]
[406688246,1772081242805,-500.0,0.00017984,2]
[406688247,1772081242826,-250.0,0.00017984,2]
[406688248,1772081242850,-233.51889341,0.00017984,2]
[406688249,1772081242871,-250.0,0.00017984,2]
[406688250,1772081242893,-250.0,0.00017984,2]
[406688251,1772081242916,-250.0,0.00017984,2]
[406688252,1772081242938,-500.0,0.00017984,2]
[406688253,1772081242961,-242.15909246,0.00017984,2]
[406688254,1772081242982,-250.0,0.00017984,2]
[406688255,1772081243004,-250.0,0.00017984,2]
[406688256,1772081243029,-250.0,0.00017984,2]
[406688257,1772081243054,-250.0,0.00017984,2]
[406688258,1772081243078,-500.0,0.00017984,2]
[406688259,1772081243107,-251.11897888,0.00017984,2]
[406688260,1772081243128,-250.0,0.00017984,2]
[406688261,1772081243150,-250.0,0.00017984,2]
[406688262,1772081243173,-250.0,0.00017984,2]
[406688263,1772081243196,-250.0,0.00017984,2]
[406688264,1772081243219,-500.0,0.00017984,2]
[406688265,1772081243242,-260.4103811,0.00017984,2]
[406688266,1772081243264,-250.0,0.00017984,2]
[406688267,1772081243286,-250.0,0.00017984,2]
[406688268,1772081243308,-250.0,0.00017984,2]
[406688269,1772081243483,-250.0,0.00017984,2]
[406688270,1772081243508,-250.0,0.00017984,2]
[406688271,1772081243532,-500.0,0.00017984,2]
[406688272,1772081243555,-270.0455652,0.00017984,2]
[406688273,1772081243577,-250.0,0.00017984,2]
[406688274,1772081243601,-250.0,0.00017984,2]
[406688275,1772081243623,-250.0,0.00017984,2]
[406688276,1772081243644,-250.0,0.00017984,2]
[406688277,1772081243666,-500.0,0.00017984,2]
[406688278,1772081243688,-250.0,0.00017984,2]
[406688279,1772081243710,-250.0,0.00017984,2]
[406688280,1772081243734,-280.03725112,0.00017984,2]
[406688281,1772081243754,-250.0,0.00017984,2]
[406688282,1772081243775,-250.0,0.00017984,2]
[406688283,1772081243795,-250.0,0.00017984,2]
[406688284,1772081243816,-500.0,0.00017984,2]
[406688285,1772081243838,-250.0,0.00017984,2]
[406688286,1772081243862,-290.39862941,0.00017984,2]
[406688287,1772081243883,-250.0,0.00017984,2]
[406688288,1772081243905,-500.0,0.00017984,2]
[406688289,1772081243926,-250.0,0.00017984,2]
[406688290,1772081243949,-301.1433787,0.00017984,2]
[406688291,1772081243969,-250.0,0.00017984,2]
[406688292,1772081243991,-250.0,0.00017984,2]
[406688293,1772081244011,-250.0,0.00017984,2]
[406688294,1772081244032,-250.0,0.00017984,2]
[406688295,1772081244053,-250.0,0.00017984,2]
[406688296,1772081244076,-250.0,0.00017984,2]
[406688297,1772081244099,-250.0,0.00017984,2]
[406688298,1772081244124,-250.0,0.00017984,2]
[406688299,1772081244148,-250.0,0.00017984,2]
[406688300,1772081244168,-250.0,0.00017984,2]
[406688301,1772081244190,-250.0,0.00017984,2]
[406688302,1772081244212,-250.0,0.00017984,2]
[406688303,1772081244234,-250.0,0.00017984,2]
[406688304,1772081244256,-250.0,0.00017984,2]
[406688305,1772081244278,-1957.856,0.00017984,2]
[406688306,1772081244299,-2579.17784983,0.00017984,2]
[406688307,1772081244322,-250.0,0.00017984,2]
[406688308,1772081244344,-162.75399136,0.00017984,2]
[406688309,1772081244365,-250.0,0.00017984,2]
[406688310,1772081244391,-250.0,0.00017984,2]
[406688311,1772081244414,-500.0,0.00017984,2]
[406688312,1772081244437,-250.0,0.00017984,2]
[406688313,1772081244459,-500.0,0.00017984,2]
[406688314,1772081244484,-250.0,0.00017984,2]
[406688315,1772081244506,-500.0,0.00017984,2]
[406688316,1772081244530,-250.0,0.00017984,2]
[406688317,1772081244551,-500.0,0.00017984,2]
[406688318,1772081244572,-250.0,0.00017984,2]
[406688319,1772081244596,-500.0,0.00017984,2]
[406688320,1772081244616,-250.0,0.00017984,2]
[406688321,1772081244636,-194.72792766,0.00017984,2]
[406688322,1772081244659,-500.0,0.00017984,2]
[406688323,1772081244680,-250.0,0.00017984,2]
[406688324,1772081244700,-250.0,0.00017984,2]
[406688325,1772081244721,-250.0,0.00017984,2]
[406688326,1772081244742,-250.0,0.00017984,2]
[406688327,1772081244765,-250.0,0.00017984,2]
[406688328,1772081244786,-250.0,0.00017984,2]
[406688329,1772081244810,-500.0,0.00017984,2]
[406688330,1772081244834,-500.0,0.00017984,2]
[406688331,1772081244857,-500.0,0.00017984,2]
[406688332,1772081244878,-151.0,0.00017984,2]
[406688333,1772081244901,-500.0,0.00017984,2]
[406688334,1772081244922,-151.0,0.00017984,2]
[406688335,1772081244945,-500.0,0.00017984,2]
[406688336,1772081244968,-151.0,0.00017984,2]
[406688337,1772081244990,-500.0,0.00017984,2]
[406688338,1772081245012,-250.0,0.00017984,2]
[406688339,1772081245034,-500.0,0.00017984,2]
[406688340,1772081245059,-250.0,0.00017984,2]
[406688341,1772081245083,-151.0,0.00017984,2]
[406688342,1772081245108,-250.0,0.00017984,2]
[406688343,1772081245131,-151.0,0.00017984,2]
[406688344,1772081245154,-250.0,0.00017984,2]
[406688345,1772081245176,-151.0,0.00017984,2]
[406688346,1772081245198,-250.0,0.00017984,2]
[406688347,1772081245219,-151.0,0.00017984,2]
[406688348,1772081245239,-250.0,0.00017984,2]
[406688349,1772081245260,-151.0,0.00017984,2]
[406688350,1772081245281,-250.0,0.00017984,2]
[406688351,1772081245301,-151.0,0.00017984,2]
[406688352,1772081245322,-250.0,0.00017984,2]
[406688353,1772081245344,-151.0,0.00017984,2]
[406688354,1772081245364,-250.0,0.00017984,2]
[406688355,1772081245385,-151.0,0.00017984,2]
[406688356,1772081245406,-292.86174089,0.00017984,2]
[406688357,1772081245425,-151.0,0.00017984,2]
[406688358,1772081245445,-151.0,0.00017984,2]
[406688359,1772081245466,-151.0,0.00017984,2]
[406688360,1772081245487,-500.0,0.00017984,2]
[406688361,1772081245507,-151.0,0.00017984,2]
[406688362,1772081245529,-500.0,0.00017984,2]
[406688363,1772081245551,-151.0,0.00017984,2]
[406688364,1772081245572,-500.0,0.00017984,2]
[406688365,1772081245594,-151.0,0.00017984,2]
[406688366,1772081245616,-500.0,0.00017984,2]
[406688367,1772081245636,-151.0,0.00017984,2]
[406688368,1772081245658,-500.0,0.00017984,2]
[406688369,1772081245679,-151.0,0.00017984,2]
[406688370,1772081245700,-500.0,0.00017984,2]
[406688371,1772081245721,-644.79446246,0.00017984,2]
[406688372,1772081245742,-154.04416148,0.00017984,2]
[406688373,1772081245764,-500.0,0.00017984,2]
[406688374,1772081245785,-500.0,0.00017984,2]
[406688375,1772081245956,-500.0,0.00017984,2]
[406688376,1772081245981,-500.0,0.00017984,2]
[406688377,1772081246005,-500.0,0.00017984,2]
[406688378,1772081246028,-151.0,0.00017984,2]
[406688379,1772081246050,-500.0,0.00017984,2]
[406688380,1772081246073,-151.0,0.00017984,2]
[406688381,1772081246099,-500.0,0.00017984,2]
[406688382,1772081246122,-151.0,0.00017984,2]
[406688383,1772081246147,-151.0,0.00017984,2]
[406688384,1772081246170,-151.0,0.00017984,2]
[406688385,1772081246194,-151.0,0.00017984,2]
[406688386,1772081246215,-151.0,0.00017984,2]
[406688387,1772081246237,-151.0,0.00017984,2]
[406688388,1772081246258,-151.0,0.00017984,2]
[406688389,1772081246279,-151.0,0.00017984,2]
[406688390,1772081246304,-151.0,0.00017984,2]
[406688391,1772081246326,-250.0,0.00017984,2]
[406688392,1772081246348,-250.0,0.00017984,2]
[406688393,1772081246370,-250.0,0.00017984,2]
[406688394,1772081246392,-250.0,0.00017984,2]
[406688395,1772081246413,-250.0,0.00017984,2]
[406688396,1772081246434,-250.0,0.00017984,2]
[406688397,1772081246456,-250.0,0.00017984,2]
[406688398,1772081246479,-250.0,0.00017984,2]
[406688399,1772081246503,-250.0,0.00017984,2]
[406688400,1772081246525,-250.0,0.00017984,2]
[406688401,1772081246550,-250.0,0.00017984,2]
[406688402,1772081246575,-250.0,0.00017984,2]
[406688403,1772081246598,-250.0,0.00017984,2]
[406688404,1772081246620,-2030.296672,0.00018039,2]
[406688405,1772081246642,-1507.92059062,0.00018094,2]
[406688406,1772081246667,-441.25401329,0.00018152,2]
[406688407,1772081246688,-2042.2,0.000184,2]
[406688408,1772081246713,-744.71502317,0.00018481,2]
[406688409,1772081246738,-166.492582,0.00018493,2]
[406688410,1772081246762,-1000.0,0.00018509,2]
[406688411,1772081246784,-244.0,0.00018509,2]
[406688412,1772081246804,-563.13996512,0.00018532,2]
[406688413,1772081246828,-2674.60743027,0.00018532,2]
[406688414,1772081246852,-668.65185757,0.00018532,2]
[406688415,1772081246875,-179.505,0.00018609,2]
[406688416,1772081246899,-460.061299,0.00018913,7]
[406688417,1772081246923,-34777.56224777,0.0001899,2]
[406688418,1772081250851,-508.92724247,0.00013273,2]
[406688419,1772081250888,-164.82332931,0.00013599,2]
[406688420,1772081250927,-500.0,0.00013699,2]
[406688421,1772081250957,-500.0,0.00013699,2]
[406688422,1772081250986,-116.30140616,0.00013699,2]
[406688423,1772081251536,-383.69859384,0.00013699,2]
[406688424,1772081251567,-462.67387266,0.00013699,2]
[406688425,1772081251598,-261.23972838,0.00014247,2]
[406688426,1772081251627,-1006.60712384,0.00014247,2]
[406688427,1772081251657,-1002.12710957,0.00014247,2]
[406688428,1772081251688,-1125.24,0.000157,2]
[406688429,1772081251720,-43511.39553601,0.0001899,2]
[406688430,1772081251753,-2181.0,0.00019038,2]
[406688431,1772081251785,-1386.0,0.00019038,2]
[406688432,1772081251818,-637.0,0.00019038,2]
[406688433,1772081251851,-430.0,0.00019038,2]
[406688434,1772081251883,-728.0,0.00019038,2]
[406688435,1772081251913,-2773.56790519,0.0001908,2]
[406688436,1772081251943,-500.0,0.00019178,2]
[406688437,1772081251973,-500.0,0.00019178,2]
[406688438,1772081252002,-500.0,0.00019178,2]
[406688439,1772081252032,-297.12212774,0.00019178,2]
[406688440,1772081252062,-256.1363,0.00019339,30]
[406688441,1772081252091,-191.20428615,0.00019504,2]
[406688442,1772081252118,-791.04164605,0.00019504,2]
[406688443,1772081252137,-1406.29625964,0.00019504,2]
[406688444,1772081252388,-275.77702781,0.00019504,2]
[406688445,1772081252429,-315.17374606,0.00019504,2]
[406688446,1772081252449,-288.18081151,0.000196,2]
[406688447,1772081252467,-786.0,0.000196,2]
[406688448,1772081252485,-2876.18991768,0.00019628,2]
[406688449,1772081252504,-1613.0,0.0001972,2]
[406688450,1772081252523,-4114.2760476,0.00019722,2]
[406688451,1772081252541,-2260.04879944,0.000198,2]
[406688452,1772081252559,-465.88488627,0.00019815,5]
[406688453,1772081252578,-805.63523396,0.00019815,5]
[406688454,1772081252597,-180.55589134,0.00019815,5]
[406688455,1772081252617,-151.0,0.000199,2]
[406688456,1772081252635,-11897.66773752,0.000199,2]
[406688457,1772081252653,-5562.53873266,0.0002,2]
[406688482,1772081431838,-500.0,0.00013267,2]
[406688484,1772081431848,-500.0,0.00013267,2]
[406688486,1772081431857,-500.0,0.00013267,2]
[406688488,1772081431867,-500.0,0.00013267,2]
[406688490,1772081431876,-500.0,0.00013267,2]
[406688492,1772081431885,-257.41727633,0.00013267,2]
[406688493,1772081431894,-608.0,0.00013267,2]
[406688495,1772081431903,-500.0,0.00013273,2]
[406688497,1772081431913,-500.0,0.00013273,2]
[406688499,1772081431922,-500.0,0.00013273,2]
[406688500,1772081431931,-200.0,0.00013474,2]
[406688501,1772081431939,-4365.7512179,0.00013531,2]
[406688502,1772081431951,-997.32222237,0.00013531,2]
[406688503,1772081431961,-1078.08916142,0.00013531,2]
[406688504,1772081431975,-10948.65685832,0.00013531,2]
[406688505,1772081431984,-300.0,0.00013531,2]
[406688506,1772081431992,-300.0,0.00013531,2]
[406688507,1772081432001,-300.0,0.00013531,2]
[406688508,1772081432010,-300.0,0.00013531,2]
[406688509,1772081432019,-300.0,0.00013531,2]
[406688510,1772081432028,-300.0,0.00013531,2]
[406688511,1772081432037,-300.0,0.00013531,2]
[406688512,1772081432046,-300.0,0.00013531,2]
[406688513,1772081432055,-300.0,0.00013531,2]
[406688514,1772081432063,-300.0,0.00013531,2]
[406688515,1772081432072,-300.0,0.00013531,2]
[406688516,1772081432082,-300.0,0.00013531,2]
[406688517,1772081432091,-300.0,0.00013531,2]
[406688519,1772081432100,-300.0,0.00013531,2]
[406688521,1772081432109,-300.0,0.00013531,2]
[406688523,1772081432118,-507.60554126,0.00013699,2]
[406688525,1772081432127,-500.0,0.00013699,2]
[406688527,1772081432137,-500.0,0.00013699,2]
[406688529,1772081432146,-501.39510292,0.00013699,2]
[406688531,1772081432158,-600.0,0.00013801,2]
[406688533,1772081432171,-1000.0,0.00013821,2]
[406688535,1772081432180,-1000.0,0.00013821,2]
[406688537,1772081432189,-1000.0,0.00013821,2]
[406688539,1772081432198,-500.0,0.00014247,2]
[406688541,1772081432209,-1039.29730173,0.00014247,2]
[406688543,1772081432218,-1500.0,0.00014368,2]
[406688545,1772081432227,-1500.0,0.00014368,2]
[406688547,1772081432237,-1500.0,0.00014368,2]
[406688549,1772081432248,-1013.3921837,0.00014916,2]
[406688551,1772081432257,-1505.86326619,0.00014916,2]
[406688553,1772081432266,-2000.0,0.00014916,2]
[406688555,1772081432275,-720.0,0.00015181,2]
[406688557,1772081432284,-200.0,0.00015264,2]
[406688559,1772081432293,-303.75238606,0.00015267,2]
[406688561,1772081432303,-2500.0,0.00015464,2]
[406688563,1772081432312,-3000.0,0.00016012,2]
[406688565,1772081432321,-318.50814793,0.0001656,2]
[406688567,1772081432330,-864.0,0.00016699,2]
[406688569,1772081432340,-200.0,0.00017197,3]
[406688571,1772081432349,-350.0874958,0.00017267,2]
[406688573,1772081432359,-744.71502317,0.00018141,2]
[406688575,1772081432367,-1000.0,0.00018369,2]
[406688577,1772081432376,-2546.7290132,0.00018582,2]
[406688579,1772081432385,-1463.43489635,0.00018938,2]
[406688581,1772081432394,-32010.8790521,0.00018969,2]
[406688583,1772081432403,-396.42260554,0.00019267,2]
[406688585,1772081432414,-200.0,0.00019285,4]
[406688587,1772081432423,-192.12054101,0.000196,2]
[406688589,1772081432432,-250.0,0.00019988,2]
[406688591,1772081432442,-194.72792766,0.00019988,2]
[406688592,1772081432451,-201.93286099,0.00019988,2]
[406688595,1772081432460,-209.40437684,0.00019988,2]
[406688597,1772081432470,-217.15233878,0.00019988,2]
[406688599,1772081432479,-225.18697532,0.00019988,2]
[406688601,1772081432489,-233.51889341,0.00019988,2]
[406688603,1772081432498,-242.15909246,0.00019988,2]
[406688605,1772081432507,-251.11897888,0.00019988,2]
[406688607,1772081432516,-260.4103811,0.00019988,2]
[406688609,1772081432525,-270.0455652,0.00019988,2]
[406688611,1772081432535,-280.03725112,0.00019988,2]
[406688613,1772081432544,-290.39862941,0.00019988,2]
[406688614,1772081432553,-301.1433787,0.00019988,2]
[406688616,1772081432562,-2579.17784983,0.00019988,2]
[406688618,1772081432571,-26529.94526502,0.0002,2]
[406688621,1772081432583,-276.36,0.0002,2]
[406688623,1772081432594,-11955.81806096,0.0002,2]
[406688768,1772081438012,-500.0,0.00019988,2]
[406688770,1772081438022,-21874.62962135,0.0002,2]
[406688773,1772081438034,-13620.17391331,0.0002,2]
[406688775,1772081438045,-2492.37903552,0.0002,2]
[406689490,1772081446890,-48751.14021705,0.0002,2]
[406689502,1772081448166,-198.89466422,0.0002,2]
[406689503,1772081449226,-500.0,0.00019988,2]
[406689504,1772081449236,-421.93862661,0.00019988,2]
[406689505,1772081449246,-8404.19898824,0.0002,2]
[406689506,1772081449255,-1000.0,0.0002,30]
[406689507,1772081449264,-55083.70727107,0.0002,2]
[406689508,1772081450453,-719.11938072,0.0002,2]
[406689509,1772081450509,-382.35591491,0.0002,2]
[406689510,1772081450540,-658.83621924,0.0002,2]
[406689511,1772081450551,-1522.895,0.0002,2]
[406689512,1772081450592,-187154.10999395,0.0002,2]
[406689513,1772081451251,-2045.44755481,0.00019788,2]
[406689514,1772081451261,-39254.76965414,0.0002,2]